bitfinex/quotes_ETHUSD_20220120
["timestamp","ask_amount","ask_price","bid_price","bid_amount"]
[1642663764577,9.885e-05,3138.0,3137.9,0.28584307]
[1642663765081,9.885e-05,3138.0,3137.9,8.24037691]
[1642663765279,9.885e-05,3138.0,3137.9,8.42025235]
[1642663765479,9.885e-05,3138.0,3137.9,6.64691851]
[1642663765677,9.885e-05,3138.0,3137.9,6.51171851]
[1642663766278,9.885e-05,3138.0,3137.9,6.63091851]
[1642663766679,9.885e-05,3138.0,3137.9,6.51171851]
[1642663767078,3.19915542,3138.1,3138.0,4.05]
[1642663767279,3.19915542,3138.1,3138.0,4.6434]
[1642663767479,3.19915542,3138.1,3138.0,8.33214208]
[1642663767682,3.19915542,3138.1,3138.0,9.47179107]
[1642663768632,3.19915542,3138.1,3138.0,6.78304899]
[1642663769235,3.19915542,3138.1,3138.0,6.94149206]
[1642663769637,3.19915542,3138.1,3138.0,10.0518568]
[1642663769837,3.19915542,3138.1,3138.0,10.4790568]
[1642663770039,3.19915542,3138.1,3138.0,10.3518568]
[1642663770240,3.19915542,3138.1,3138.0,10.4726568]
[1642663770438,3.19915542,3138.1,3138.0,10.4734568]
[1642663770639,3.19915542,3138.1,3138.0,9.7518568]
[1642663771239,3.19915542,3138.1,3138.0,9.75086156]
[1642663771679,3.19915542,3138.1,3138.0,13.25086156]
[1642663771872,3.19915542,3138.1,3138.0,9.0744568]
[1642663773177,3.19915542,3138.1,3138.0,5.5744568]
[1642663774077,3.19915542,3138.1,3138.0,2.76409206]
[1642663774481,3.19915542,3138.1,3138.0,1.76409206]
[1642663774780,3.19915542,3138.1,3138.0,8.76409206]
[1642663774981,3.19915542,3138.1,3138.0,5.26409206]
[1642663775180,3.19915542,3138.1,3138.0,6.26409206]
[1642663775629,3.19915542,3138.1,3138.0,5.12444307]
[1642663776827,3.19915542,3138.1,3138.0,1.62444307]
[1642663777029,3.19915542,3138.1,3138.0,0.62444307]
[1642663786234,3.19915542,3138.1,3138.0,0.92444307]
[1642663786436,1.92176509,3138.1,3138.0,8.66773457]
[1642663786675,1.92176509,3138.1,3138.0,9.96773457]
[1642663786869,1.92176509,3138.1,3138.0,10.09253457]
[1642663787072,1.92176509,3138.1,3138.0,7.28811851]
[1642663787472,1.92176509,3138.1,3138.0,7.16171851]
[1642663788375,1.92176509,3138.1,3138.0,6.86171851]
[1642663788573,1.92176509,3138.1,3138.0,7.16171851]
[1642663788973,1.92176509,3138.1,3138.0,7.28411851]
[1642663789175,1.92176509,3138.1,3138.0,6.73431851]
[1642663789674,1.92176509,3138.1,3138.0,6.98811851]
[1642663789875,1.92176509,3138.1,3138.0,7.28731851]
[1642663790727,1.92176509,3138.1,3138.0,7.28811851]
[1642663790931,1.92176509,3138.1,3138.0,7.28731851]
[1642663791129,2.75237151,3138.9,3138.0,7.28731851]
[1642663791328,1.2396,3138.9,3138.3,0.79625]
[1642663791530,0.00454739,3138.8,3138.3,1.26225]
[1642663791731,0.00454739,3138.8,3138.4,0.15844307]
[1642663791933,2.787368,3139.5,3138.9,0.16179687]
[1642663792132,2.71193612,3139.4,3139.0,0.79876719]
[1642663792332,0.00284212,3139.3,3139.0,0.79876719]
[1642663792633,2.787368,3139.5,3139.2,0.15844307]
[1642663792832,2.787368,3139.5,3139.2,1.22404307]
[1642663793036,0.00284212,3139.3,3139.2,1.22404307]
[1642663793439,2.71582733,3139.5,3139.2,1.22404307]
[1642663793636,0.00397896,3139.5,3139.2,1.22404307]
[1642663793937,0.00341054,3139.4,3139.2,1.22404307]
[1642663794378,2.71184949,3139.5,3139.3,0.15844307]
[1642663794579,2.71184949,3139.5,3139.1,2.17905933]
[1642663794783,0.00341054,3139.4,3139.1,2.64505933]
[1642663794980,0.00341054,3139.4,3139.1,1.64505933]
[1642663795181,0.00341054,3139.4,3139.2,1.0]
[1642663795379,0.00341054,3139.4,3139.1,2.64505933]
[1642663795579,0.00341054,3139.4,3139.2,1.0]
[1642663795782,0.00341054,3139.4,3139.1,2.64505933]
[1642663795985,0.00341054,3139.4,3139.3,0.15844307]
[1642663797482,0.00341054,3139.4,3139.2,1.0]
[1642663797681,0.00341054,3139.4,3139.1,1.8035024]
[1642663798125,0.00341054,3139.4,3139.1,1.62444307]
[1642663798326,0.00341054,3139.4,3139.1,0.62444307]
[1642663799428,0.00341054,3139.4,3139.1,0.466]
[1642663800529,1.47382024,3139.1,3138.9,2.10929881]
[1642663800830,1.47382024,3139.1,3138.9,1.10929881]
[1642663801232,0.00341054,3139.4,3138.9,1.10929881]
[1642663802075,1.55385648,3139.0,3138.9,1.10929881]
[1642663802275,1.55385648,3139.0,3138.7,1.0]
[1642663802476,1.55385648,3139.0,3138.6,1.1274]
[1642663802675,1.55385648,3139.0,3138.6,0.1274]
[1642663803280,1.55286069,3139.0,3138.6,0.1274]
[1642663803683,1.55286069,3139.0,3138.6,1.35587594]
[1642663804880,1.55286069,3139.0,3138.6,1.22847594]
[1642663805541,1.55286069,3139.0,3138.5,0.00170527]
[1642663806943,1.55286069,3139.0,3138.3,0.1274]
[1642663807144,1.55286069,3139.0,3138.5,1.50390306]
[1642663807344,1.55286069,3139.0,3138.6,0.1274]
[1642663807644,1.55286069,3139.0,3138.6,0.12853685]
[1642663809277,0.12009792,3138.8,3138.6,0.12853685]
[1642663809477,0.24019584,3138.8,3138.6,0.12853685]
[1642663811679,0.24019584,3138.8,3138.6,0.00113685]
[1642663813928,0.24019584,3138.8,3138.6,0.12853685]
[1642663814333,1.55286069,3139.0,3138.6,0.12853685]
[1642663814535,0.12009792,3138.8,3138.6,0.00113685]
[1642663814736,2.71247835,3138.7,3138.6,0.00113685]
[1642663814934,2.71247835,3138.7,3138.4,0.0022737]
[1642663815135,2.787368,3138.6,3138.4,0.0022737]
[1642663815336,2.71293326,3138.5,3138.4,0.0022737]
[1642663815534,3.83247492,3138.5,3138.4,0.0022737]
[1642663816338,1.11954166,3138.5,3138.4,0.0022737]
[1642663816686,5.01954166,3138.5,3138.4,0.0022737]
[1642663816877,10.64502438,3138.5,3138.4,0.0022737]
[1642663817280,10.64502438,3138.5,3137.5,1.40583979]
[1642663817479,2.71300773,3138.4,3137.6,0.1274]
[1642663817680,2.66683316,3138.3,3137.6,0.00682108]
[1642663817880,2.66683316,3138.3,3137.7,0.00625266]
[1642663818080,2.66683316,3138.3,3137.5,0.13478951]
[1642663818279,2.66683316,3138.3,3137.3,0.00852635]
[1642663818480,1.55956794,3137.5,3137.4,1.59945901]
[1642663818881,1.55956794,3137.5,3137.4,1.60741694]
[1642663819081,2.61498169,3138.1,3137.4,1.60741694]
[1642663819285,4.172,3138.2,3137.4,2.20353922]
[1642663819583,4.172,3138.2,3137.5,0.00738951]
[1642663819983,0.24019584,3137.8,3137.5,0.00738951]
[1642663820623,0.24019584,3137.8,3137.6,0.72352228]
[1642663820823,1.30737931,3137.7,3137.6,0.72352228]
[1642663821830,1.30737931,3137.7,3137.5,0.72352228]
[1642663823230,1.30737931,3137.7,3137.5,1.72352228]
[1642663824400,1.30737931,3137.7,3137.5,1.0]
[1642663824595,1.30737931,3137.7,3137.4,2.26853901]
[1642663824996,1.30737931,3137.7,3137.5,0.00738951]
[1642663825195,0.12009792,3137.6,3137.5,0.00738951]
[1642663825396,0.24019584,3137.6,3137.5,0.00738951]
[1642663825795,0.24019584,3137.6,3137.5,0.16598951]
[1642663826599,0.24019584,3137.6,3137.5,0.29338951]
[1642663828831,0.24019584,3137.6,3137.5,0.16598951]
[1642663829029,0.24019584,3137.6,3137.5,0.19243793]
[1642663830232,0.24019584,3137.6,3137.5,0.03383793]
[1642663830632,0.24019584,3137.6,3137.5,0.00738951]
[1642663831678,3.44019584,3137.6,3137.5,0.00738951]
[1642663833884,3.44019584,3137.6,3137.5,0.19243793]
[1642663836524,3.44019584,3137.6,3137.5,0.25231424]
[1642663836925,3.44019584,3137.6,3137.5,1.25231424]
[1642663837126,3.44019584,3137.6,3137.5,4.96997015]
[1642663837332,1.54420523,3138.6,3138.1,1.47543908]
[1642663837534,4.5273,3139.2,3138.2,3.26367909]
[1642663837730,4.5273,3139.2,3138.2,3.26708963]
[1642663837931,0.00170527,3139.1,3138.3,1.00284212]
[1642663838131,0.00170527,3139.1,3138.8,1.29266354]
[1642663838331,0.00113685,3139.0,3138.8,1.29266354]
[1642663838731,1.54707455,3138.9,3138.8,1.29266354]
[1642663839578,1.54616325,3138.9,3138.8,1.29266354]
[1642663839783,1.54616325,3138.9,3138.8,1.45126354]
[1642663840579,1.54616325,3138.9,3138.8,0.1586]
[1642663840780,1.54616325,3138.9,3138.5,0.1274]
[1642663841182,1.54616325,3138.9,3138.6,0.00113685]
[1642663845037,1.54616325,3138.9,3138.6,1.00113685]
[1642663845439,1.54616325,3138.9,3138.6,0.00113685]
[1642663847793,1.54616325,3138.9,3138.4,0.0022737]
[1642663849394,1.54616325,3138.9,3138.4,0.1296737]
[1642663849794,1.54616325,3138.9,3138.5,0.00170527]
[1642663850440,1.54616325,3138.9,3138.5,2.76666994]
[1642663850642,1.54616325,3138.9,3138.5,0.00170527]
[1642663850834,1.54616325,3138.9,3138.6,1.00113685]
[1642663851035,1.54616325,3138.9,3138.5,0.00170527]
[1642663851336,1.54616325,3138.9,3138.6,0.1274]
[1642663854582,1.54616325,3138.9,3138.5,0.00170527]
[1642663856188,2.71255973,3138.8,3138.5,0.00170527]
[1642663857952,1.54616325,3138.9,3138.5,0.00170527]
[1642663858540,1.54616325,3138.9,3138.5,1.00170527]
[1642663858940,1.54616325,3138.9,3138.6,0.00113685]
[1642663859140,1.54616325,3138.9,3138.7,0.01358325]
[1642663862378,2.71262638,3138.8,3138.7,0.01358325]
[1642663863781,2.71166259,3138.8,3138.7,0.01358325]
[1642663863984,2.71166259,3138.8,3138.5,0.00170527]
[1642663864585,2.71166259,3138.8,3138.3,0.00284212]
[1642663864783,2.71166259,3138.8,3138.4,0.1274]
[1642663865184,2.71166259,3138.8,3138.5,0.00170527]
[1642663865834,2.71166259,3138.8,3138.3,0.00284212]
[1642663866833,5.31911871,3138.8,3138.3,0.00284212]
[1642663867034,1.54616325,3138.9,3138.3,0.00284212]
[1642663867233,2.75109851,3138.8,3138.3,0.00284212]
[1642663867436,1.54616325,3138.9,3138.3,0.00284212]
[1642663867632,1.54616325,3138.9,3137.9,0.00511581]
[1642663868232,1.54616325,3138.9,3138.0,0.1274]
[1642663868432,1.11198747,3138.0,3137.9,0.00511581]
[1642663868634,12.6417,3138.8,3137.8,0.1274]
[1642663870084,1.21868318,3138.2,3137.8,0.1274]
[1642663872688,1.21868318,3138.2,3137.8,3.76274669]
[1642663872929,12.6417,3138.8,3137.8,1.08236]
[1642663873131,12.6417,3138.8,3137.8,3.80868179]
[1642663873331,12.6417,3138.8,3137.9,1.0]
[1642663873531,12.6417,3138.8,3138.0,0.1274]
[1642663873733,12.6417,3138.8,3138.0,0.13194739]
[1642663873934,1.38253191,3138.1,3138.0,0.13194739]
[1642663874334,1.38253191,3138.1,3138.0,0.00454739]
[1642663874534,12.6417,3138.8,3138.0,0.29052739]
[1642663874736,12.6417,3138.8,3138.1,0.1274]
[1642663874936,12.6417,3138.8,3138.1,0.13137897]
[1642663875134,12.6417,3138.8,3138.2,0.00341054]
[1642663876036,8.6901,3138.8,3138.2,0.00341054]
[1642663877976,1.10396423,3138.6,3138.2,0.00341054]
[1642663878580,4.8741,3138.8,3138.2,0.00341054]
[1642663879782,1.21323627,3138.6,3138.2,0.00341054]
[1642663880431,2.00965627,3138.6,3138.2,0.00341054]
[1642663880630,2.80608957,3138.6,3138.2,0.00341054]
[1642663882437,2.80608957,3138.6,3137.9,0.00511581]
[1642663883337,1.45909411,3138.0,3137.9,0.00511581]
[1642663891878,0.796446,3138.5,3137.9,0.00511581]
[1642663892079,2.71294503,3138.4,3137.9,0.00511581]
[1642663892478,2.71294503,3138.4,3137.8,0.00568424]
[1642663892879,1.49811549,3138.2,3137.8,0.00568424]
[1642663894085,1.49715523,3138.2,3137.8,0.00568424]
[1642663894895,0.796446,3138.5,3137.8,0.00568424]
[1642663895189,2.71282003,3138.4,3137.8,0.00568424]
[1642663895426,2.71282003,3138.4,3137.8,2.72138224]
[1642663895627,4.61060375,3139.3,3137.9,1.68461062]
[1642663895628,1.5927229,3139.0,3137.9,1.68461062]
[1642663895828,1.32615493,3139.0,3138.5,1.35667524]
[1642663896026,1.32615493,3139.0,3138.3,0.466]
[1642663896228,3.6409,3138.8,3138.6,0.00113685]
[1642663896427,1.32615493,3139.0,3138.5,0.466]
[1642663896628,2.71252498,3138.9,3138.5,0.46770527]
[1642663896828,2.71252498,3138.9,3138.6,0.00113685]
[1642663903735,1.32615493,3139.0,3138.6,0.00113685]
[1642663906340,2.71254164,3138.9,3138.6,0.00113685]
[1642663907499,2.71254164,3138.9,3138.5,0.00170527]
[1642663908905,2.71254164,3138.9,3138.7,0.01380628]
[1642663911538,2.70162519,3138.9,3138.7,0.01380628]
[1642663911838,2.12249023,3139.0,3138.7,0.01380628]
[1642663912239,1.32615493,3139.0,3138.7,0.01380628]
[1642663912441,3.2,3138.9,3138.7,0.01380628]
[1642663913945,3.2,3138.9,3138.7,0.01250145]
[1642663919034,3.2,3138.9,3138.8,0.01379042]
[1642663920239,3.5,3138.9,3138.8,0.01379042]
[1642663920441,3.5,3138.9,3138.5,0.00170527]
[1642663920442,3.75,3138.8,3138.5,0.00170527]
[1642663920643,4.05,3138.8,3138.5,0.00170527]
[1642663921039,3.2,3138.9,3138.5,0.00170527]
[1642663921242,3.2,3138.9,3138.5,0.26835718]
[1642663921539,3.2,3138.9,3138.6,0.00113685]
[1642663924792,3.2,3138.9,3138.5,0.00170527]
[1642663926944,3.2,3138.9,3138.6,1.36343214]
[1642663928546,3.19916774,3138.9,3138.6,1.36343214]
[1642663931795,2.71261963,3138.8,3138.6,1.36343214]
[1642663933037,3.19916774,3138.9,3138.6,2.15960214]
[1642663933237,3.19916774,3138.9,3138.6,1.36343214]
[1642663934038,4.55104863,3138.9,3138.6,1.36343214]
[1642663934240,2.71244633,3138.8,3138.6,1.36343214]
[1642663934540,2.71244633,3138.8,3138.6,1.49083214]
[1642663936690,4.13835886,3138.8,3138.6,1.49083214]
[1642663936888,2.71244633,3138.7,3138.5,1.12910527]
[1642663937089,2.71244633,3138.7,3138.5,0.12910527]
[1642663937290,2.71244633,3138.7,3138.6,0.00113685]
[1642663939092,2.71244633,3138.7,3138.5,0.00170527]
[1642663939691,2.71244633,3138.7,3138.3,0.1274]
[1642663939692,2.71244633,3138.7,3138.4,0.0022737]
[1642663942946,2.48362855,3138.6,3138.4,0.0022737]
[1642663943145,2.71244633,3138.5,3138.4,0.0022737]
[1642663943345,5.67431423,3138.5,3138.2,0.00341054]
[1642663943547,2.71244633,3138.4,3138.2,0.00341054]
[1642663943745,3.80998148,3138.3,3138.1,0.00397897]
[1642663943949,2.71244633,3138.2,3138.1,0.00397897]
[1642663944192,2.71244633,3138.2,3137.9,0.00511581]
[1642663945588,1.3626068,3138.3,3137.9,0.00511581]
[1642663953185,4.5626068,3138.3,3137.9,0.00511581]
[1642663958539,4.56165852,3138.3,3137.9,0.00511581]
[1642663965358,2.71340979,3138.2,3137.8,0.00568424]
[1642663965559,5.19951619,3138.2,3137.8,0.00568424]
[1642663965760,2.4861064,3138.2,3137.8,0.00568424]
[1642663966160,4.56165852,3138.3,3137.8,0.00568424]
[1642663966360,5.26448564,3138.2,3137.8,0.00568424]
[1642663966693,5.26448564,3138.2,3137.7,0.00625266]
[1642663966694,2.71352279,3138.1,3137.7,0.00625266]
[1642663968089,2.44184708,3138.0,3137.7,0.00625266]
[1642663968889,0.3,3137.9,3137.7,0.00625266]
[1642663969693,2.44184708,3138.0,3137.7,0.00625266]
[1642663970091,3.32706707,3138.2,3137.7,0.00625266]
[1642663970293,2.71362904,3138.1,3137.7,0.00625266]
[1642663971138,2.4200784,3138.0,3137.7,0.00625266]
[1642663971341,3.51033764,3137.9,3137.7,0.00625266]
[1642663971540,5.61892201,3137.8,3137.7,0.00625266]
[1642663972741,7.21426896,3137.8,3137.7,0.00625266]
[1642663972940,6.91426896,3137.8,3137.7,0.00625266]
[1642663973140,7.21426896,3137.8,3137.7,0.00625266]
[1642663973540,7.51426896,3137.8,3137.7,0.00625266]
[1642663975494,6.91426896,3137.8,3137.7,0.00625266]
[1642663975693,4.20063992,3137.8,3137.7,0.00625266]
[1642663976092,7.51457583,3137.8,3137.7,0.00625266]
[1642663976293,7.21457583,3137.8,3137.7,0.00625266]
[1642663976494,6.91457583,3137.8,3137.7,0.00625266]
[1642663979850,7.21457583,3137.8,3137.7,0.00625266]
[1642663980255,6.91457583,3137.8,3137.7,0.00625266]
[1642663980552,6.56059707,3137.8,3137.7,0.13365266]
[1642663980750,4.00928286,3137.8,3137.7,0.13365266]
[1642663980952,1.29534695,3137.8,3137.7,0.13365266]
[1642663982894,1.59534695,3137.8,3137.7,0.13365266]
[1642663983897,1.29534695,3137.8,3137.7,0.13365266]
[1642663985199,1.29534695,3137.8,3137.7,0.00625266]
[1642663985838,3.82207902,3137.8,3137.7,0.00625266]
[1642663986037,1.29534695,3137.8,3137.7,0.00625266]
[1642663987843,1.59534695,3137.8,3137.7,0.00625266]
[1642663988046,1.29534695,3137.8,3137.7,0.00625266]
[1642663996812,1.29534695,3137.8,3137.6,5.537633]
[1642664000208,2.09198695,3137.8,3137.6,5.537633]
[1642664000438,2.47373464,3137.7,3137.6,5.537633]
[1642664000841,5.4878121,3137.7,3137.6,5.54445408]
[1642664001645,5.48697832,3137.7,3137.6,5.54445408]
[1642664001844,5.78697832,3137.7,3137.6,5.54445408]
[1642664003845,5.48697832,3137.7,3137.6,5.54445408]
[1642664005300,2.71407746,3137.7,3137.6,5.54445408]
[1642664005500,2.09198695,3137.8,3137.6,5.54445408]
[1642664005703,2.09198695,3137.8,3137.7,0.1274]
[1642664005899,2.09198695,3137.8,3137.7,0.13365266]
[1642664006801,4.80585956,3137.8,3137.7,0.13365266]
[1642664008241,5.10585956,3137.8,3137.7,0.00625266]
[1642664009248,5.10426084,3137.8,3137.7,0.00625266]
[1642664010049,7.65361427,3137.8,3137.7,0.00625266]
[1642664010751,7.95361427,3137.8,3137.7,0.00625266]
[1642664011550,12.02448863,3137.8,3137.7,0.00625266]
[1642664013799,3.65,3137.7,3137.6,5.537633]
[1642664014003,9.74601485,3137.7,3137.6,5.537633]
[1642664014398,2.85,3137.6,3136.6,0.1274]
[1642664014601,1.5937113,3137.4,3136.6,0.1274]
[1642664014799,5.50115759,3137.3,3136.7,0.00568423]
[1642664014998,2.71387261,3137.2,3136.8,0.1275]
[1642664015199,2.55826999,3137.1,3136.8,0.1275]
[1642664015456,2.55826999,3137.1,3136.9,0.00454739]
[1642664015648,1.52363454,3137.2,3137.0,0.1275]
[1642664015848,5.22099551,3137.1,3137.0,0.1275]
[1642664016348,5.22099551,3137.1,3136.6,0.1275]
[1642664016552,2.5065629,3137.1,3136.6,0.1275]
[1642664016750,3.3034229,3137.1,3136.7,0.00568423]
[1642664017952,2.4777599,3137.1,3136.7,0.00568423]
[1642664018153,1.52363454,3137.2,3136.7,0.00568423]
[1642664018953,1.52363454,3137.2,3136.9,0.01589111]
[1642664019396,1.52363454,3137.2,3137.0,0.00397896]
[1642664020799,1.52363454,3137.2,3137.1,0.1275]
[1642664021199,1.52363454,3137.2,3137.1,0.13091054]
[1642664021403,4.07687678,3137.2,3137.1,0.00341054]
[1642664021599,6.79123906,3137.2,3137.1,0.00341054]
[1642664021999,6.79123906,3137.2,3137.0,0.00397896]
[1642664022201,2.51987124,3137.1,3137.0,0.00397896]
[1642664023240,2.81987124,3137.1,3137.0,0.00397896]
[1642664023638,6.01987124,3137.1,3137.0,0.00397896]
[1642664023838,5.71987124,3137.1,3137.0,0.00397896]
[1642664024445,0.79686,3137.0,3136.6,0.00625266]
[1642664026144,2.44921363,3136.9,3136.6,0.00625266]
[1642664026344,2.46047741,3136.9,3136.6,0.00625266]
[1642664026789,3.25739741,3136.9,3136.6,0.00625266]
[1642664027795,2.46047741,3136.9,3136.6,0.00625266]
[1642664030941,2.76047741,3136.9,3136.6,0.00625266]
[1642664037292,0.3,3136.9,3136.6,0.00625266]
[1642664037497,5.72293191,3137.1,3136.6,0.00625266]
[1642664037693,1.43959692,3136.7,3136.6,0.00625266]
[1642664038340,1.43959692,3136.7,3136.6,0.13375266]
[1642664039745,1.43868936,3136.7,3136.6,0.13375266]
[1642664040544,1.43868936,3136.7,3136.6,0.00625266]
[1642664041547,1.43868936,3136.7,3136.6,0.13375266]
[1642664044701,1.43868936,3136.7,3136.6,0.00625266]
[1642664047548,1.43785471,3136.7,3136.6,0.00625266]
[1642664048747,1.73785471,3136.7,3136.6,0.00625266]
[1642664049048,4.38589281,3136.7,3136.6,0.00625266]
[1642664049298,1.73785471,3136.7,3136.6,0.00625266]
[1642664050098,4.29793797,3136.7,3136.6,0.00625266]
[1642664050297,1.73785471,3136.7,3136.6,0.00625266]
[1642664050900,1.43785471,3136.7,3136.6,0.00625266]
[1642664051098,3.98847622,3136.7,3136.6,0.00625266]
[1642664051297,3.99430436,3136.7,3136.6,0.00625266]
[1642664051499,1.43785471,3136.7,3136.6,0.00625266]
[1642664052098,4.00054971,3136.7,3136.6,0.00625266]
[1642664052298,6.71530598,3136.7,3136.6,0.00625266]
[1642664052598,3.98989066,3136.7,3136.6,0.00625266]
[1642664052800,4.0161844,3136.7,3136.6,0.00625266]
[1642664053045,1.43785471,3136.7,3136.6,0.00625266]
[1642664053446,4.08383243,3136.7,3136.6,0.00625266]
[1642664053644,4.02423528,3136.7,3136.6,0.00625266]
[1642664053845,1.43785471,3136.7,3136.6,0.00625266]
[1642664054451,6.61110817,3136.7,3136.5,0.01]
[1642664054651,1.43785471,3136.7,3136.5,0.01]
[1642664060302,1.43785471,3136.7,3136.6,0.1275]
[1642664060548,1.43785471,3136.7,3136.5,0.01]
[1642664066602,2.71470616,3136.6,3136.5,0.01]
[1642664067100,2.71470616,3136.6,3136.5,0.01682108]
[1642664067302,1.43785471,3136.7,3136.5,0.01682108]
[1642664067601,1.43785471,3136.7,3136.6,0.00625266]
[1642664067802,4.15253919,3136.7,3136.6,0.00625266]
[1642664068046,1.43785471,3136.7,3136.6,0.00625266]
[1642664068246,1.43694982,3136.7,3136.6,0.00625266]
[1642664069048,4.15158606,3136.7,3136.6,0.00625266]
[1642664069252,1.43694982,3136.7,3136.6,0.00625266]
[1642664075008,6.5163,3137.1,3136.6,0.16485266]
[1642664075009,3.2,3137.1,3136.6,0.16485266]
[1642664075209,3.2,3137.1,3137.0,5.0591732]
[1642664075649,3.2,3137.1,3137.0,6.25073494]
[1642664075850,3.2,3137.1,3137.0,6.37073494]
[1642664076051,4.32294321,3137.1,3137.0,6.36993494]
[1642664076252,4.32294321,3137.1,3137.0,7.35147591]
[1642664076455,4.32294321,3137.1,3137.0,1.65933494]
[1642664077054,4.32294321,3137.1,3137.0,0.50073494]
[1642664078854,4.32294321,3137.1,3137.0,0.06406174]
[1642664085958,4.32206213,3137.1,3137.0,0.06406174]
[1642664095004,3.38102213,3137.1,3137.0,0.06406174]
[1642664100163,3.38102213,3137.1,3137.0,0.00397896]
[1642664100562,3.38102213,3137.1,3136.9,0.00454739]
[1642664101163,3.38102213,3137.1,3136.8,0.00511581]
[1642664101362,3.38102213,3137.1,3136.7,0.00568423]
[1642664102603,3.38102213,3137.1,3136.7,0.06576701]
[1642664103001,3.38102213,3137.1,3136.8,0.00511581]
[1642664107349,3.38102213,3137.1,3136.8,0.13261581]
[1642664107751,3.38102213,3137.1,3136.9,0.00454739]
[1642664108748,3.68102213,3137.1,3136.9,0.00454739]
[1642664109806,3.38102213,3137.1,3136.9,0.00454739]
[1642664111809,4.17780213,3137.1,3136.8,0.00511581]
[1642664113353,4.17780213,3137.1,3136.7,0.00568423]
[1642664113853,3.01449889,3137.0,3136.7,0.00568423]
[1642664114061,2.71449889,3136.9,3136.7,0.00568423]
[1642664114658,2.71468041,3136.8,3136.7,0.00568423]
[1642664114859,0.3,3137.0,3136.7,0.00568423]
[1642664115060,2.71463896,3136.9,3136.7,0.00568423]
[1642664115561,2.71463896,3136.9,3136.6,0.00625266]
[1642664115762,4.17780213,3137.1,3136.6,0.00625266]
[1642664116159,3.01455746,3137.0,3136.6,0.00625266]
[1642664116359,0.3,3137.0,3136.6,0.00625266]
[1642664117008,0.29899867,3137.0,3136.6,0.00625266]
[1642664117406,2.71458534,3136.9,3136.6,0.00625266]
[1642664117908,0.29899867,3137.0,3136.6,0.00625266]
[1642664119111,4.17780213,3137.1,3136.6,0.00625266]
[1642664119312,0.3,3137.0,3136.6,0.00625266]
[1642664120212,0.29916443,3137.0,3136.6,0.00625266]
[1642664120855,4.17780213,3137.1,3136.6,0.00625266]
[1642664122152,4.17780213,3137.1,3136.7,0.1275]
[1642664122452,4.17780213,3137.1,3136.8,0.00511581]
[1642664123151,4.17780213,3137.1,3136.7,0.00568423]
[1642664124703,2.71449703,3137.0,3136.7,0.00568423]
[1642664125703,4.17780213,3137.1,3136.7,0.00568423]
[1642664125906,2.71448002,3137.0,3136.7,0.00568423]
[1642664126105,4.17780213,3137.1,3136.7,0.00568423]
[1642664126304,3.38102213,3137.1,3136.7,0.00568423]
[1642664129955,2.71463506,3137.0,3136.7,0.00568423]
[1642664131998,3.38102213,3137.1,3136.7,0.00568423]
[1642664132599,2.71465628,3137.0,3136.7,0.00568423]
[1642664133002,3.38102213,3137.1,3136.7,0.00485169]
[1642664133805,2.71466396,3137.0,3136.7,0.00485169]
[1642664135205,3.38102213,3137.1,3136.7,0.00485169]
[1642664135458,3.68102213,3137.1,3136.7,0.00485169]
[1642664136054,2.71462939,3137.0,3136.7,0.00485169]
[1642664138258,3.38102213,3137.1,3136.7,0.00485169]
[1642664138756,3.68102213,3137.1,3136.7,0.00485169]
[1642664138959,2.71461553,3137.0,3136.7,0.00485169]
[1642664139200,3.68102213,3137.1,3136.7,0.00485169]
[1642664139405,2.71461659,3137.0,3136.7,0.00485169]
[1642664139606,3.68102213,3137.1,3136.7,0.00485169]
[1642664139904,2.71461629,3137.0,3136.7,0.00485169]
[1642664141507,3.01461629,3137.0,3136.7,0.00485169]
[1642664141704,0.3,3137.0,3136.6,0.00542012]
[1642664141904,3.68102213,3137.1,3136.6,0.00542012]
[1642664142104,2.7146616,3137.0,3136.6,0.00542012]
[1642664143552,2.7146616,3137.0,3136.6,0.80212012]
[1642664143751,3.68102213,3137.1,3136.6,0.80212012]
[1642664143952,3.68102213,3137.1,3136.7,0.00485169]
[1642664144955,3.38102213,3137.1,3136.7,0.00485169]
[1642664145258,3.38102213,3137.1,3136.8,0.52613672]
[1642664145457,3.38102213,3137.1,3136.9,3.05060959]
[1642664145655,3.38102213,3137.1,3137.0,7.14002]
[1642664145856,3.38102213,3137.1,3137.0,8.58364487]
[1642664146257,3.38102213,3137.1,3137.0,7.14316642]
[1642664146457,3.38102213,3137.1,3137.0,7.30176642]
[1642664146702,3.38102213,3137.1,3137.0,2.55176642]
[1642664147200,3.38102213,3137.1,3137.0,1.55176642]
[1642664147399,3.38102213,3137.1,3137.0,2.55176642]
[1642664147600,3.38102213,3137.1,3137.0,1.55176642]
[1642664147802,3.38102213,3137.1,3137.0,2.55176642]
[1642664148201,3.38102213,3137.1,3137.0,1.55176642]
[1642664148600,3.38102213,3137.1,3137.0,2.55176642]
[1642664149002,3.38102213,3137.1,3137.0,1.55176642]
[1642664149207,3.38102213,3137.1,3137.0,2.55176642]
[1642664149407,3.38102213,3137.1,3137.0,5.29653923]
[1642664149606,2.25807892,3137.1,3137.0,2.55176642]
[1642664149805,2.25807892,3137.1,3137.0,6.35176642]
[1642664150009,1.1755,3138.1,3137.5,0.34776035]
[1642664150207,2.71413901,3137.7,3137.5,0.34776035]
[1642664150459,0.00083254,3137.7,3137.5,0.34776035]
[1642664150655,0.1196251,3137.6,3137.5,0.34776035]
[1642664150954,0.1196251,3137.6,3137.5,0.64776035]
[1642664151252,0.1196251,3137.6,3137.5,3.8]
[1642664151653,0.1196251,3137.6,3137.5,4.8]
[1642664152254,0.1196251,3137.6,3137.5,5.1]
[1642664155508,3.3196251,3137.6,3137.5,5.1]
[1642664158953,3.3196251,3137.6,3137.5,5.1315441]
[1642664159359,3.2,3137.6,3137.5,5.1315441]
[1642664159559,3.2,3137.6,3137.5,7.82038977]
[1642664159760,3.2,3137.6,3137.5,5.1315441]
[1642664160559,4.56515107,3137.6,3137.5,5.1315441]
[1642664160758,3.2,3137.6,3137.5,5.1315441]
[1642664164208,3.2,3137.6,3137.5,5.1]
[1642664165557,3.2,3137.6,3137.5,10.1629786]
[1642664165758,3.2,3137.6,3137.5,7.55983232]
[1642664165956,3.2,3137.6,3137.5,5.15983232]
[1642664166559,0.00083254,3137.7,3137.6,2.85]
[1642664166757,0.00083254,3137.7,3137.6,3.15]
[1642664166956,0.00083254,3137.7,3137.6,1.3]
[1642664167156,1.42846065,3137.7,3137.6,1.3]
[1642664172508,1.42846065,3137.7,3137.6,0.3]
[1642664173262,1.42846065,3137.7,3137.6,3.8]
[1642664173463,1.42846065,3137.7,3137.6,8.24637]
[1642664173763,1.42846065,3137.7,3137.6,9.24637]
[1642664174163,1.42846065,3137.7,3137.6,5.59637]
[1642664175370,0.00083254,3137.7,3137.6,5.59637]
[1642664175967,3.20083254,3137.7,3137.6,5.59637]
[1642664177006,0.00083254,3137.7,3137.6,5.59637]